[Event "FIDE Grand Swiss 2023"]
[Site "Villa Marina, Douglas, Isle of Man"]
[Date "2023.11.01"]
[Round "7.23"]
[White "Ter-Sahakyan, Samvel"]
[Black "Shirov, Alexei"]
[Result "1-0"]
[WhiteElo "2618"]
[BlackElo "2655"]
[EventDate "2023.10.25"]
[ECO "D12"]
[PlyCount "71"]
[BlackClock "00:05:35"]
[BlackFideId "2209390"]
[TimeControl "40/100 + 20/50 + 15 + 30s/move"]
[WhiteClock "00:18:52"]
[WhiteFideId "13302531"]

1.d4 {[%clk 01:40:56][%emt 00:00:02]} 1...d5 {[%clk 01:40:11][%emt 00:00:50]} 
2.c4 {[%clk 01:41:04][%emt 00:00:22]} 2...c6 {[%clk 01:40:36][%emt 00:00:04]} 
3.Nf3 {[%clk 01:41:19][%emt 00:00:15]} 3...Nf6 {[%clk 01:41:02][%emt 00:00:04]} 
4.e3 {[%clk 01:41:37][%emt 00:00:13]} 4...Bf5 {[%clk 01:41:29][%emt 00:00:04]} 
5.Nc3 {[%clk 01:41:26][%emt 00:00:42]} 5...e6 {[%clk 01:41:55][%emt 00:00:03]} 
6.Nh4 {[%clk 01:41:38][%emt 00:00:17]} 6...Be4 {[%clk 01:42:21][%emt 00:00:04]} 
7.f3 {[%clk 01:40:47][%emt 00:01:22]} 7...Bg6 {[%clk 01:42:47][%emt 00:00:03]} 
8.Bd2 {[%clk 01:41:07][%emt 00:00:11]} 8...Be7 {[%clk 01:42:46][%emt 00:00:30]} 
9.Nxg6 {[%clk 01:41:19][%emt 00:00:18]} 9...hxg6 {[%clk 01:43:11][%emt
00:00:06]} 10.Qc2 {[%clk 01:41:41][%emt 00:00:08]} 10...Nbd7 {[%clk
01:39:00][%emt 00:04:40]} 11.O-O-O {[%clk 01:41:12][%emt 00:00:58]} 11...dxc4 
{[%clk 01:39:27][%emt 00:00:04]} 12.Bxc4 {[%clk 01:41:31][%emt 00:00:11]} 
12...a6 {[%clk 01:39:49][%emt 00:00:07]} 13.e4 {[%clk 01:37:52][%emt 00:04:11]} 
13...b5 {[%clk 01:40:09][%emt 00:00:11]} 14.Bxe6 {[%clk 01:37:09][%emt
00:01:12]} 14...fxe6 {[%clk 01:40:22][%emt 00:00:16]} 15.e5 {[%clk
01:37:35][%emt 00:00:04]} 15...Nd5 {[%clk 01:40:41][%emt 00:00:11]} 16.Nxd5 
{[%clk 01:37:27][%emt 00:00:39]} 16...cxd5 {[%clk 01:41:05][%emt 00:00:06]} 
17.Qxg6+ {[%clk 01:37:53][%emt 00:00:04]} 17...Kf8 {[%clk 01:41:32][%emt
00:00:04]} 18.h4 {[%clk 01:37:42][%emt 00:00:40]} 18...Nb6 {[%clk 01:33:03][%emt
00:08:59]} 19.Kb1 {[%clk 01:26:59][%emt 00:11:13]} 19...Nc4 {[%clk
01:13:51][%emt 00:19:41]} 20.Bc1 {[%clk 01:22:44][%emt 00:04:45]} 20...Qe8 
{[%clk 01:09:09][%emt 00:05:12]} 21.Qxe6 {[%clk 01:23:03][%emt 00:00:12]} 
21...Qf7 {[%clk 01:09:28][%emt 00:00:10]} 22.Qxf7+ {[%clk 01:20:08][%emt
00:03:26]} 22...Kxf7 {[%clk 01:09:51][%emt 00:00:07]} 23.h5 {[%clk
01:20:36][%emt 00:00:02]} 23...g6 {[%clk 00:52:19][%emt 00:18:01]} 24.hxg6+ 
{[%clk 01:13:59][%emt 00:07:09]} 24...Kxg6 {[%clk 00:51:53][%emt 00:00:54]} 
25.g4 {[%clk 01:14:12][%emt 00:00:17]} 25...Rag8 {[%clk 00:32:36][%emt
00:19:48]} 26.f4 {[%clk 00:48:41][%emt 00:26:02]} 26...Kf7 {[%clk 00:32:05][%emt
00:00:59]} 27.Rxh8 {[%clk 00:48:57][%emt 00:00:15]} 27...Rxh8 {[%clk
00:32:28][%emt 00:00:07]} 28.f5 {[%clk 00:49:16][%emt 00:00:11]} 28...Rg8 
{[%clk 00:16:01][%emt 00:16:57]} 29.f6 {[%clk 00:47:55][%emt 00:01:51]} 
29...Bd8 {[%clk 00:16:27][%emt 00:00:04]} 30.g5 {[%clk 00:43:40][%emt 00:04:45]} 
30...Bb6 {[%clk 00:16:45][%emt 00:00:12]} 31.b3 {[%clk 00:27:32][%emt 00:16:38]} 
31...Na5 {[%clk 00:16:32][%emt 00:00:42]} 32.e6+ {[%clk 00:21:02][%emt
00:07:02]} 32...Kxe6 {[%clk 00:16:45][%emt 00:00:15]} 33.Re1+ {[%clk
00:21:29][%emt 00:00:03]} 33...Kf7 {[%clk 00:13:10][%emt 00:04:05]} 34.Re7+ 
{[%clk 00:21:52][%emt 00:00:08]} 34...Kg6 {[%clk 00:12:19][%emt 00:01:21]} 
35.f7 {[%clk 00:22:02][%emt 00:00:20]} 35...Rc8 {[%clk 00:11:32][%emt 00:01:16]} 
36.Bf4 {[%clk 00:18:52][%emt 00:03:40]} 1-0

[Event "FIDE Grand Swiss 2023"]
[Site "Villa Marina, Douglas, Isle of Man"]
[Date "2023.11.01"]
[Round "7.24"]
[White "Praggnanandhaa, R"]
[Black "Gupta, Abhijeet"]
[Result "1-0"]
[WhiteElo "2738"]
[BlackElo "2609"]
[EventDate "2023.10.25"]
[ECO "D12"]
[PlyCount "69"]
[BlackClock "00:00:16"]
[BlackFideId "5010608"]
[TimeControl "40/100 + 20/50 + 15 + 30s/move"]
[WhiteClock "00:03:18"]
[WhiteFideId "25059530"]

1.d4 {[%clk 01:40:06][%emt 00:00:53]} 1...d5 {[%clk 01:40:40][%emt 00:00:22]} 
2.c4 {[%clk 01:40:28][%emt 00:00:08]} 2...c6 {[%clk 01:41:05][%emt 00:00:05]} 
3.Nf3 {[%clk 01:40:51][%emt 00:00:06]} 3...Nf6 {[%clk 01:41:30][%emt 00:00:05]} 
4.e3 {[%clk 01:41:10][%emt 00:00:12]} 4...Bf5 {[%clk 01:41:31][%emt 00:00:29]} 
5.Nc3 {[%clk 01:41:24][%emt 00:00:16]} 5...e6 {[%clk 01:41:54][%emt 00:00:07]} 
6.Nh4 {[%clk 01:41:40][%emt 00:00:14]} 6...Bg6 {[%clk 01:41:03][%emt 00:01:21]} 
7.Be2 {[%clk 01:40:20][%emt 00:01:50]} 7...Be7 {[%clk 01:39:53][%emt 00:01:40]} 
8.Bd2 {[%clk 01:35:55][%emt 00:04:55]} 8...Nbd7 {[%clk 01:37:04][%emt 00:03:19]} 
9.g3 {[%clk 01:27:21][%emt 00:09:04]} 9...a6 {[%clk 01:35:40][%emt 00:01:55]} 
10.O-O {[%clk 01:22:38][%emt 00:05:12]} 10...dxc4 {[%clk 01:23:46][%emt
00:12:24]} 11.Nxg6 {[%clk 01:17:59][%emt 00:05:08]} 11...hxg6 {[%clk
01:24:12][%emt 00:00:04]} 12.Bxc4 {[%clk 01:18:17][%emt 00:00:12]} 12...c5 
{[%clk 01:23:25][%emt 00:01:17]} 13.Bb3 {[%clk 01:12:35][%emt 00:06:13]} 
13...b5 {[%clk 01:20:01][%emt 00:03:55]} 14.Qf3 {[%clk 01:05:53][%emt 00:07:10]} 
14...g5 {[%clk 01:16:50][%emt 00:03:41]} 15.Ne4 {[%clk 01:03:27][%emt 00:02:56]} 
15...Nxe4 {[%clk 01:09:23][%emt 00:07:57]} 16.Qxe4 {[%clk 01:03:55][%emt
00:00:02]} 16...O-O {[%clk 00:56:29][%emt 00:13:25]} 17.Rfd1 {[%clk
00:53:20][%emt 00:11:04]} 17...Nf6 {[%clk 00:54:32][%emt 00:02:27]} 18.Qf3 
{[%clk 00:49:41][%emt 00:04:09]} 18...g4 {[%clk 00:45:02][%emt 00:10:01]} 
19.Qe2 {[%clk 00:48:34][%emt 00:01:37]} 19...cxd4 {[%clk 00:37:32][%emt
00:08:00]} 20.Bc3 {[%clk 00:48:19][%emt 00:00:44]} 20...Qb8 {[%clk
00:32:18][%emt 00:05:44]} 21.exd4 {[%clk 00:47:07][%emt 00:01:43]} 21...Re8 
{[%clk 00:30:57][%emt 00:01:51]} 22.Rac1 {[%clk 00:27:34][%emt 00:20:03]} 
22...Qb7 {[%clk 00:28:22][%emt 00:03:05]} 23.d5 {[%clk 00:25:31][%emt 00:02:33]} 
23...exd5 {[%clk 00:28:27][%emt 00:00:25]} 24.Qd2 {[%clk 00:24:48][%emt
00:01:13]} 24...Rac8 {[%clk 00:10:26][%emt 00:18:31]} 25.Qg5 {[%clk
00:23:32][%emt 00:01:46]} 25...b4 {[%clk 00:08:53][%emt 00:02:03]} 26.Bxd5 
{[%clk 00:20:43][%emt 00:03:19]} 26...Qb6 {[%clk 00:04:16][%emt 00:05:07]} 
27.Be5 {[%clk 00:15:38][%emt 00:05:34]} 27...Rxc1 {[%clk 00:03:22][%emt
00:01:25]} 28.Rxc1 {[%clk 00:15:49][%emt 00:00:20]} 28...Rd8 {[%clk
00:03:12][%emt 00:00:39]} 29.Bg2 {[%clk 00:09:21][%emt 00:06:57]} 29...Qe6 
{[%clk 00:03:26][%emt 00:00:17]} 30.b3 {[%clk 00:09:16][%emt 00:00:34]} 30...g6 
{[%clk 00:01:48][%emt 00:02:09]} 31.Qf4 {[%clk 00:06:39][%emt 00:03:07]} 
31...Nd5 {[%clk 00:01:06][%emt 00:01:12]} 32.Qe4 {[%clk 00:06:46][%emt
00:00:23]} 32...Nf6 {[%clk 00:00:47][%emt 00:00:49]} 33.Qe1 {[%clk
00:06:35][%emt 00:00:41]} 33...Nd5 {[%clk 00:00:40][%emt 00:00:37]} 34.Rd1 
{[%clk 00:03:05][%emt 00:04:00]} 34...Bf6 {[%clk 00:00:33][%emt 00:00:37]} 
35.Bxd5 {[%clk 00:03:18][%emt 00:00:17]} 1-0

[Event "FIDE Grand Swiss 2023"]
[Site "Villa Marina, Douglas, Isle of Man"]
[Date "2023.11.01"]
[Round "7.25"]
[White "Nguyen, Thai Dai Van"]
[Black "Vachier-Lagrave, Maxime"]
[Result "0-1"]
[WhiteElo "2618"]
[BlackElo "2727"]
[EventDate "2023.10.25"]
[ECO "B30"]
[PlyCount "88"]
[BlackClock "01:44:08"]
[BlackFideId "623539"]
[TimeControl "40/100 + 20/50 + 15 + 30s/move"]
[WhiteClock "00:46:44"]
[WhiteFideId "358878"]

1.e4 {[%clk 01:40:51][%emt 00:00:07]} 1...c5 {[%clk 01:40:57][%emt 00:00:04]} 
2.Nf3 {[%clk 01:40:51][%emt 00:00:29]} 2...Nc6 {[%clk 01:41:25][%emt 00:00:03]} 
3.Bb5 {[%clk 01:41:06][%emt 00:00:15]} 3...e6 {[%clk 01:41:51][%emt 00:00:04]} 
4.O-O {[%clk 01:34:27][%emt 00:07:08]} 4...Nge7 {[%clk 01:41:59][%emt 00:00:23]} 
5.Re1 {[%clk 01:34:50][%emt 00:00:06]} 5...Ng6 {[%clk 01:42:22][%emt 00:00:08]} 
6.c3 {[%clk 01:34:01][%emt 00:01:18]} 6...a6 {[%clk 01:42:38][%emt 00:00:15]} 
7.Bf1 {[%clk 01:31:09][%emt 00:03:21]} 7...Be7 {[%clk 01:42:51][%emt 00:00:18]} 
8.d4 {[%clk 01:30:39][%emt 00:01:00]} 8...cxd4 {[%clk 01:43:16][%emt 00:00:06]} 
9.cxd4 {[%clk 01:31:04][%emt 00:00:04]} 9...d5 {[%clk 01:43:42][%emt 00:00:04]} 
10.e5 {[%clk 01:31:24][%emt 00:00:10]} 10...O-O {[%clk 01:44:00][%emt 00:00:13]} 
11.Nc3 {[%clk 01:13:22][%emt 00:18:31]} 11...h6 {[%clk 01:43:36][%emt 00:00:54]} 
12.Bd3 {[%clk 01:01:10][%emt 00:12:42]} 12...Bd7 {[%clk 01:43:59][%emt
00:00:08]} 13.Be3 {[%clk 00:44:21][%emt 00:17:18]} 13...Be8 {[%clk
01:42:57][%emt 00:01:32]} 14.a3 {[%clk 00:43:50][%emt 00:01:02]} 14...f6 {[%clk
01:37:33][%emt 00:05:52]} 15.Qb1 {[%clk 00:40:46][%emt 00:03:35]} 15...f5 
{[%clk 01:37:38][%emt 00:00:25]} 16.b4 {[%clk 00:40:01][%emt 00:01:15]} 16...b5 
{[%clk 01:36:14][%emt 00:01:55]} 17.Rc1 {[%clk 00:33:21][%emt 00:07:09]} 
17...Nh8 {[%clk 01:31:29][%emt 00:05:15]} 18.Nd2 {[%clk 00:30:02][%emt
00:03:49]} 18...Nxe5 {[%clk 01:27:48][%emt 00:04:11]} 19.dxe5 {[%clk
00:24:58][%emt 00:05:33]} 19...d4 {[%clk 01:28:04][%emt 00:00:15]} 20.Bxd4 
{[%clk 00:19:09][%emt 00:06:20]} 20...Qxd4 {[%clk 01:28:22][%emt 00:00:11]} 
21.Nf3 {[%clk 00:19:37][%emt 00:00:01]} 21...Qb6 {[%clk 01:28:15][%emt
00:00:37]} 22.Ne2 {[%clk 00:17:22][%emt 00:02:46]} 22...Rd8 {[%clk
01:22:53][%emt 00:05:51]} 23.Qb3 {[%clk 00:15:51][%emt 00:02:01]} 23...Ng6 
{[%clk 01:22:08][%emt 00:01:15]} 24.Rd1 {[%clk 00:13:23][%emt 00:02:59]} 
24...Kh8 {[%clk 01:17:13][%emt 00:05:24]} 25.Rac1 {[%clk 00:13:03][%emt
00:00:51]} 25...Nh4 {[%clk 01:14:45][%emt 00:02:57]} 26.Nfd4 {[%clk
00:04:24][%emt 00:09:09]} 26...Bg5 {[%clk 01:02:31][%emt 00:12:44]} 27.Qxe6 
{[%clk 00:00:53][%emt 00:04:01]} 27...Qb7 {[%clk 01:02:56][%emt 00:00:06]} 
28.f3 {[%clk 00:01:16][%emt 00:00:07]} 28...Be3+ {[%clk 01:02:05][%emt
00:01:21]} 29.Kf1 {[%clk 00:00:37][%emt 00:01:09]} 29...Bxd4 {[%clk
01:02:19][%emt 00:00:15]} 30.Nxd4 {[%clk 00:00:48][%emt 00:00:20]} 30...Rxd4 
{[%clk 01:02:45][%emt 00:00:03]} 31.Rc8 {[%clk 00:01:12][%emt 00:00:06]} 
31...Qd7 {[%clk 01:02:32][%emt 00:00:43]} 32.Qxd7 {[%clk 00:01:36][%emt
00:00:06]} 32...Rxd7 {[%clk 01:02:58][%emt 00:00:03]} 33.f4 {[%clk
00:01:17][%emt 00:00:49]} 33...Ng6 {[%clk 01:01:43][%emt 00:01:46]} 34.g3 
{[%clk 00:01:37][%emt 00:00:09]} 34...Bf7 {[%clk 01:01:01][%emt 00:01:12]} 
35.Rc6 {[%clk 00:01:05][%emt 00:01:02]} 35...Ne7 {[%clk 01:00:03][%emt
00:01:28]} 36.Rxa6 {[%clk 00:01:23][%emt 00:00:13]} 36...Bh5 {[%clk
00:59:08][%emt 00:01:24]} 37.e6 {[%clk 00:01:02][%emt 00:00:51]} 37...Rd4 
{[%clk 00:57:08][%emt 00:02:30]} 38.Rd2 {[%clk 00:01:21][%emt 00:00:10]} 
38...Rfd8 {[%clk 00:57:05][%emt 00:00:33]} 39.Ra7 {[%clk 00:01:48][%emt
00:00:04]} 39...Rxd3 {[%clk 00:56:20][%emt 00:01:15]} 40.Rxd3 {[%clk
00:02:11][%emt 00:00:07]} 40...Rxd3 {[%clk 00:56:48][%emt 00:00:02]} 41.Rxe7 
{[%clk 00:02:36][%emt 00:00:05]} 41...Re3 {[%clk 00:53:43][%emt 00:03:34]} 
42.Rf7 {[%clk 00:46:34][%emt 00:06:33]} 42...Rxe6 {[%clk 01:43:21][%emt
00:00:52]} 43.Rxf5 {[%clk 00:46:36] [%emt 00:00:27]} 43...Be2+ {[%clk 01:43:47]
[%emt 00:00:04]} 44.Kf2 {[%clk 00:46:54] [%emt 00:00:13]} 44...Bc4 {[%clk
01:44:08] [%emt 00:00:09]} 0-1

[Event "FIDE Grand Swiss 2023"]
[Site "Villa Marina, Douglas, Isle of Man"]
[Date "2023.11.01"]
[Round "7.26"]
[White "Harikrishna, Pentala"]
[Black "Murzin, Volodar"]
[Result "1/2-1/2"]
[WhiteElo "2716"]
[BlackElo "2633"]
[EventDate "2023.10.25"]
[ECO "C77"]
[PlyCount "81"]
[BlackFideId "44155573"]
[TimeControl "40/100 + 20/50 + 15 + 30s/move"]
[WhiteFideId "5007003"]

1.e4 {[%clk 01:40:54][%emt 00:00:05]} 1...e5 {[%clk 01:40:53][%emt 00:00:07]} 
2.Nf3 {[%clk 01:41:13][%emt 00:00:11]} 2...Nc6 {[%clk 01:41:16][%emt 00:00:08]} 
3.Bb5 {[%clk 01:41:06][%emt 00:00:37]} 3...a6 {[%clk 01:41:40][%emt 00:00:07]} 
4.Ba4 {[%clk 01:41:31][%emt 00:00:04]} 4...Nf6 {[%clk 01:42:02][%emt 00:00:07]} 
5.Nc3 {[%clk 01:40:50][%emt 00:01:12]} 5...Bd6 {[%clk 01:21:15][%emt 00:21:17]} 
6.O-O {[%clk 01:31:12][%emt 00:10:07]} 6...Nd4 {[%clk 01:15:36][%emt 00:06:10]} 
7.d3 {[%clk 01:24:16][%emt 00:07:26]} 7...Nxf3+ {[%clk 01:09:24][%emt 00:06:42]} 
8.Qxf3 {[%clk 01:24:30][%emt 00:00:15]} 8...O-O {[%clk 01:09:48][%emt 00:00:07]} 
9.g4 {[%clk 01:15:10][%emt 00:09:49]} 9...Kh8 {[%clk 00:55:15][%emt 00:15:03]} 
10.Bb3 {[%clk 01:11:58][%emt 00:03:42]} 10...Bc5 {[%clk 00:53:30][%emt
00:02:15]} 11.g5 {[%clk 00:56:51][%emt 00:15:37]} 11...Ng8 {[%clk 00:53:06][%emt
00:00:54]} 12.Qg3 {[%clk 00:55:51][%emt 00:01:30]} 12...d6 {[%clk 00:50:08][%emt
00:03:29]} 13.Be3 {[%clk 00:55:39][%emt 00:00:42]} 13...f5 {[%clk 00:45:06][%emt
00:05:31]} 14.f4 {[%clk 00:51:45][%emt 00:04:24]} 14...exf4 {[%clk
00:36:22][%emt 00:09:16]} 15.Rxf4 {[%clk 00:50:44]} ( 15.Rf2 {[%emt 00:01:30]} 
15...f3 16.Rxf3 {[%clk 00:50:44]} 16...Bd4 {[%emt 00:01:11]} 17.Rf4 Bxe3+ 
{[%clk 00:35:41]} 18.Qxe3 {[%clk 00:51:05][%emt 00:00:08]} 18...Qxg5+ {[%clk
00:36:05][%emt 00:00:07]} 19.Qg3 {[%clk 00:40:36][%emt 00:10:58]} 19...Qxg3+ 
{[%clk 00:34:34][%emt 00:02:02]} 20.hxg3 {[%clk 00:41:00][%emt 00:00:05]} 
20...Bd7 {[%clk 00:21:28][%emt 00:13:37]} 21.Raf1 {[%clk 00:40:38][%emt
00:00:51]} 21...Ne7 {[%clk 00:16:11][%emt 00:05:48]} 22.exf5 {[%clk
00:28:33][%emt 00:12:35]} 22...Rxf5 {[%clk 00:15:46][%emt 00:00:55]} 23.Re1 
{[%clk 00:27:21][%emt 00:01:41]} 23...Ng6 {[%clk 00:13:43][%emt 00:02:34]} 
24.Rxf5 {[%clk 00:25:41][%emt 00:02:10]} 24...Bxf5 {[%clk 00:14:11][%emt
00:00:01]} 25.Bd5 {[%clk 00:18:58][%emt 00:07:13]} 25...c6 {[%clk 00:14:20][%emt
00:00:22]} 26.Be4 {[%clk 00:19:23][%emt 00:00:04]} 26...Ne7 {[%clk
00:11:47][%emt 00:03:03]} 27.g4 {[%clk 00:19:45][%emt 00:00:09]} 27...Bxg4 
{[%clk 00:10:52][%emt 00:01:25]} 28.Bxh7 {[%clk 00:20:08][%emt 00:00:06]} 
28...Nf5 {[%clk 00:11:15][%emt 00:00:08]} 29.Bxf5 {[%clk 00:20:03][%emt
00:00:34]} 29...Bxf5 {[%clk 00:11:43][%emt 00:00:03]} 30.Re7 {[%clk
00:19:33][%emt 00:01:00]} 30...Rb8 {[%clk 00:11:43][%emt 00:00:30]} 31.Rf7 
{[%clk 00:17:05][%emt 00:02:57]} 31...Be6 {[%clk 00:10:37][%emt 00:01:37]} 
32.Rc7 {[%clk 00:16:35][%emt 00:00:58]} 32...Kh7 {[%clk 00:09:36][%emt
00:01:32]} 33.b3 {[%clk 00:14:49][%emt 00:02:17]} 33...Bf5 {[%clk 00:09:30][%emt
00:00:36]} 34.Nd1 {[%clk 00:14:35][%emt 00:00:42]} 34...Kg6 {[%clk
00:08:57][%emt 00:01:05]} 35.Ne3 {[%clk 00:14:59][%emt 00:00:06]} 35...Be6 
{[%clk 00:09:22][%emt 00:00:05]} 36.d4 {[%clk 00:15:19][%emt 00:00:09]} 
36...Kf6 {[%clk 00:08:49][%emt 00:01:04]} 37.c4 {[%clk 00:14:55][%emt 00:00:54]} 
37...a5 {[%clk 00:06:32][%emt 00:02:47]} 38.a4 {[%clk 00:11:43][%emt 00:03:41]} 
38...Re8 {[%clk 00:05:10][%emt 00:01:52]} 39.Rxb7 {[%clk 00:10:23][%emt
00:01:51]} 39...Bc8 {[%clk 00:05:28][%emt 00:00:12]} 40.Rc7 {[%clk
00:10:47][%emt 00:00:06]} 40...Rxe3 {[%clk 00:05:46][%emt 00:00:11]} 41.Rxc8 
{[%clk 00:11:12][%emt 00:00:05]} 41...Rxb3 {[%clk 00:06:09][%emt 00:00:08]} 
42.Rxc6 {[%clk 00:10:53][%emt 00:00:48]} 42...Ke7 {[%clk 00:06:31][%emt
00:00:09]} 43.c5 {[%clk 00:07:45] [%emt 00:03:38]} ) 15...Bxe3+ {[%clk 00:35:41]
[%emt 00:02:41]} 16.Qxe3 {[%clk 00:51:05] [%emt 00:00:08]} 16...Qxg5+ {[%clk
00:36:05] [%emt 00:00:07]} 17.Qg3 {[%clk 00:40:36] [%emt 00:10:58]} 17...Qxg3+ 
{[%clk 00:34:34] [%emt 00:02:02]} 18.hxg3 {[%clk 00:41:00] [%emt 00:00:05]} 
18...Bd7 {[%clk 00:21:28] [%emt 00:13:37]} 19.Raf1 {[%clk 00:40:38] [%emt
00:00:51]} 19...Ne7 {[%clk 00:16:11] [%emt 00:05:48]} 20.exf5 {[%clk 00:28:33]
[%emt 00:12:35]} 20...Rxf5 {[%clk 00:15:46] [%emt 00:00:55]} 21.Re1 {[%clk
00:27:21] [%emt 00:01:41]} 21...Ng6 {[%clk 00:13:43] [%emt 00:02:34]} 22.Rxf5 
{[%clk 00:25:41] [%emt 00:02:10]} 22...Bxf5 {[%clk 00:14:11] [%emt 00:00:01]} 
23.Bd5 {[%clk 00:18:58] [%emt 00:07:13]} 23...c6 {[%clk 00:14:20] [%emt
00:00:22]} 24.Be4 {[%clk 00:19:23] [%emt 00:00:04]} 24...Ne7 {[%clk 00:11:47]
[%emt 00:03:03]} 25.g4 {[%clk 00:19:45] [%emt 00:00:09]} 25...Bxg4 {[%clk
00:10:52] [%emt 00:01:25]} 26.Bxh7 {[%clk 00:20:08] [%emt 00:00:06]} 26...Nf5 
{[%clk 00:11:15] [%emt 00:00:08]} 27.Bxf5 {[%clk 00:20:03] [%emt 00:00:34]} 
27...Bxf5 {[%clk 00:11:43] [%emt 00:00:03]} 28.Re7 {[%clk 00:19:33] [%emt
00:01:00]} 28...Rb8 {[%clk 00:11:43] [%emt 00:00:30]} 29.Rf7 {[%clk 00:17:05]
[%emt 00:02:57]} 29...Be6 {[%clk 00:10:37] [%emt 00:01:37]} 30.Rc7 {[%clk
00:16:35] [%emt 00:00:58]} 30...Kh7 {[%clk 00:09:36] [%emt 00:01:32]} 31.b3 
{[%clk 00:14:49] [%emt 00:02:17]} 31...Bf5 {[%clk 00:09:30] [%emt 00:00:36]} 
32.Nd1 {[%clk 00:14:35] [%emt 00:00:42]} 32...Kg6 {[%clk 00:08:57] [%emt
00:01:05]} 33.Ne3 {[%clk 00:14:59] [%emt 00:00:06]} 33...Be6 {[%clk 00:09:22]
[%emt 00:00:05]} 34.d4 {[%clk 00:15:19] [%emt 00:00:09]} 34...Kf6 {[%clk
00:08:49] [%emt 00:01:04]} 35.c4 {[%clk 00:14:55] [%emt 00:00:54]} 35...a5 
{[%clk 00:06:32] [%emt 00:02:47]} 36.a4 {[%clk 00:11:43] [%emt 00:03:41]} 
36...Re8 {[%clk 00:05:10] [%emt 00:01:52]} 37.Rxb7 {[%clk 00:10:23] [%emt
00:01:51]} 37...Bc8 {[%clk 00:05:28] [%emt 00:00:12]} 38.Rc7 {[%clk 00:10:47]
[%emt 00:00:06]} 38...Rxe3 {[%clk 00:05:46] [%emt 00:00:11]} 39.Rxc8 {[%clk
00:11:12] [%emt 00:00:05]} 39...Rxb3 {[%clk 00:06:09] [%emt 00:00:08]} 40.Rxc6 
{[%clk 00:10:53] [%emt 00:00:48]} 40...Ke7 {[%clk 00:06:31] [%emt 00:00:09]} 
41.c5 {[%clk 00:07:45] [%emt 00:03:38]} 1/2-1/2